[Event "7° Rencontres Internationales des Echecs Francophones"]
[Site "PARIS, France"]
[Date "2019.08.10"]
[Round "9.8"]
[White "Aloma Vidal, Robert"]
[Black "Dumas, Charles"]
[Result "1-0"]
[TimeControl "90'+30' + 30seconds/move"]
[WhiteElo "2417"]
[BlackElo "2148"]

1. d4 {[%clk 00:05:05]} {[%emt 00:01:42]} Nf6 {[%clk 00:05:06]} 2. c4 e6 3. Nf3
{[%clk 00:05:09]} {[%emt 00:00:01]} Bb4+ {[%clk 00:05:10]} 4. Nbd2 {[%clk
00:05:10]} {[%emt 00:00:03]} O-O {[%clk 00:05:09]} {[%emt 00:00:04]} 5. a3
{[%emt 00:00:02]} Bxd2+ {[%clk 00:05:10]} {[%emt 00:00:02]} 6. Qxd2 {[%clk
00:05:06]} {[%emt 00:00:09]} b6 {[%clk 00:05:12]} {[%emt 00:00:01]} 7. g3
{[%emt 00:00:02]} Bb7 {[%emt 00:00:02]} 8. Bg2 {[%clk 00:05:09]} d6 {[%clk
00:05:10]} {[%emt 00:00:06]} 9. O-O {[%clk 00:05:09]} {[%emt 00:00:03]} Nbd7
{[%clk 00:04:52]} {[%emt 00:00:21]} 10. b4 {[%clk 00:05:10]} {[%emt 00:00:02]}
e5 {[%clk 00:04:51]} {[%emt 00:00:04]} 11. Bb2 {[%clk 00:05:08]} {[%emt
00:00:05]} Qe7 {[%clk 00:04:52]} {[%emt 00:00:02]} 12. dxe5 {[%clk 00:05:01]}
{[%emt 00:00:10]} Nxe5 {[%clk 00:03:55]} {[%emt 00:01:00]} 13. Nxe5 {[%clk
00:05:02]} {[%emt 00:00:03]} Bxg2 {[%clk 00:03:57]} {[%emt 00:00:01]} 14. Kxg2
{[%clk 00:05:01]} {[%emt 00:00:03]} dxe5 {[%clk 00:03:59]} {[%emt 00:00:02]} 15.
Rfd1 {[%clk 00:05:02]} {[%emt 00:00:01]} Rad8 {[%clk 00:03:38]} {[%emt
00:00:25]} 16. Qe3 {[%clk 00:05:03]} {[%emt 00:00:02]} Ng4 {[%clk 00:03:29]}
{[%emt 00:00:11]} 17. Qf3 {[%clk 00:05:04]} {[%emt 00:00:02]} f5 {[%clk
00:03:22]} {[%emt 00:00:10]} 18. Rxd8 {[%clk 00:04:57]} {[%emt 00:00:10]} Qxd8
{[%clk 00:03:08]} {[%emt 00:00:18]} 19. h3 {[%emt 00:00:02]} e4 {[%emt
00:00:06]} 20. Qf4 {[%emt 00:00:20]} Nh6 {[%clk 00:02:56]} {[%emt 00:00:06]} 21.
c5 {[%clk 00:04:26]} {[%emt 00:00:28]} Qd5 22. Qxc7 {[%emt 00:00:40]} e3+
{[%clk 00:02:19]} 1-0

[Event "7° Rencontres Internationales des Echecs Francophones"]
[Site "PARIS, France"]
[Date "2019.08.10"]
[Round "9.9"]
[White "Ralison, Milanto Harifidy"]
[Black "Piscopo, Pierluigi"]
[Result "0-1"]
[TimeControl "90'+30' + 30seconds/move"]
[WhiteElo "2277"]
[BlackElo "2417"]

1. e4 {[%clk 00:05:04]} {[%emt 00:00:01]} c5 {[%clk 00:05:06]} 2. Nf3 {[%emt
00:00:01]} e6 3. g3 {[%clk 00:05:07]} Nc6 {[%clk 00:05:10]} 4. Bg2 {[%clk
00:05:09]} Nf6 {[%clk 00:05:13]} 5. Nc3 {[%clk 00:05:11]} {[%emt 00:00:01]} d6
{[%clk 00:05:12]} {[%emt 00:00:04]} 6. O-O {[%clk 00:05:11]} {[%emt 00:00:02]}
Be7 {[%clk 00:05:13]} {[%emt 00:00:02]} 7. d4 {[%clk 00:05:12]} {[%emt
00:00:02]} cxd4 {[%clk 00:05:15]} 8. Nxd4 {[%clk 00:05:14]} {[%emt 00:00:02]}
Bd7 {[%clk 00:05:15]} {[%emt 00:00:04]} 9. Ndb5 {[%clk 00:05:01]} {[%emt
00:00:15]} Qb8 {[%clk 00:05:17]} {[%emt 00:00:02]} 10. Bf4 {[%clk 00:05:02]}
Ne5 {[%clk 00:05:19]} {[%emt 00:00:02]} 11. a4 {[%clk 00:04:50]} {[%emt
00:00:15]} O-O {[%clk 00:05:14]} {[%emt 00:00:08]} 12. Qe2 {[%clk 00:04:44]}
{[%emt 00:00:09]} a6 {[%clk 00:04:54]} {[%emt 00:00:23]} 13. Nd4 {[%clk
00:04:41]} {[%emt 00:00:06]} Qc7 {[%clk 00:04:50]} {[%emt 00:00:07]} 14. Nb3
{[%clk 00:04:24]} {[%emt 00:00:19]} Rac8 {[%clk 00:04:49]} {[%emt 00:00:04]} 15.
Nd2 {[%clk 00:04:13]} {[%emt 00:00:14]} Rfd8 {[%clk 00:04:33]} {[%emt
00:00:19]} 16. h3 {[%clk 00:04:09]} {[%emt 00:00:07]} Nc4 {[%clk 00:04:16]}
{[%emt 00:00:21]} 17. Nxc4 {[%clk 00:04:07]} {[%emt 00:00:05]} Qxc4 {[%clk
00:04:18]} {[%emt 00:00:01]} 18. Qd2 {[%clk 00:03:42]} {[%emt 00:00:28]} Bc6
{[%clk 00:04:09]} {[%emt 00:00:12]} 19. b3 {[%clk 00:03:33]} {[%emt 00:00:12]}
Qc5 {[%clk 00:04:07]} {[%emt 00:00:05]} 20. Be3 {[%clk 00:03:31]} {[%emt
00:00:05]} Qb4 {[%clk 00:03:54]} {[%emt 00:00:16]} 21. Nb1 {[%clk 00:02:53]}
{[%emt 00:00:41]} d5 {[%clk 00:03:21]} {[%emt 00:00:36]} 22. e5 {[%clk
00:02:48]} {[%emt 00:00:07]} Ne4 {[%clk 00:03:13]} {[%emt 00:00:11]} 23. Qxb4
{[%clk 00:02:37]} {[%emt 00:00:14]} Bxb4 {[%clk 00:03:15]} {[%emt 00:00:01]} 24.
Bd4 {[%clk 00:02:26]} {[%emt 00:00:14]} Be8 {[%clk 00:03:09]} {[%emt 00:00:10]}
25. Bxe4 {[%clk 00:02:05]} {[%emt 00:00:24]} dxe4 {[%clk 00:03:11]} 26. c3
{[%clk 00:02:04]} {[%emt 00:00:04]} Bc5 {[%clk 00:03:02]} {[%emt 00:00:13]} 27.
Rd1 {[%clk 00:01:58]} {[%emt 00:00:09]} Bxd4 {[%clk 00:03:02]} {[%emt
00:00:03]} 28. cxd4 {[%clk 00:01:59]} Rc2 {[%clk 00:02:53]} {[%emt 00:00:12]}
29. Na3 {[%clk 00:02:01]} {[%emt 00:00:02]} Rc3 {[%clk 00:02:52]} {[%emt
00:00:04]} 30. Nc4 {[%clk 00:01:43]} {[%emt 00:00:20]} Rxb3 {[%clk 00:02:49]}
{[%emt 00:00:06]} 31. Nd6 {[%clk 00:01:35]} {[%emt 00:00:11]} Bc6 {[%clk
00:02:51]} {[%emt 00:00:02]} 32. a5 {[%clk 00:01:28]} {[%emt 00:00:10]} e3
{[%clk 00:02:48]} {[%emt 00:00:06]} 33. Kh2 {[%clk 00:00:21]} {[%emt 00:01:10]}
Rb2 {[%clk 00:02:44]} {[%emt 00:00:07]} 34. Rf1 {[%clk 00:00:20]} {[%emt
00:00:03]} Bb5 {[%clk 00:01:56]} {[%emt 00:00:51]} 35. Rh1 {[%emt 00:01:09]}
0-1

[Event "7° Rencontres Internationales des Echecs Francophones"]
[Site "PARIS, France"]
[Date "2019.08.10"]
[Round "9.10"]
[White "Rakotomaharo, Fy Antenaina"]
[Black "Ternault, Mathieu"]
[Result "1/2-1/2"]
[TimeControl "90'+30' + 30seconds/move"]
[WhiteElo "2364"]
[BlackElo "2158"]

1. e4 {[%clk 00:05:04]} {[%emt 00:07:41]} Nc6 {[%clk 00:05:04]} {[%emt
00:00:02]} 2. d4 {[%clk 00:05:05]} {[%emt 00:00:03]} e5 {[%clk 00:05:06]}
{[%emt 00:00:02]} 3. Nf3 {[%clk 00:05:02]} {[%emt 00:00:05]} exd4 {[%clk
00:05:07]} {[%emt 00:00:02]} 4. Nxd4 {[%clk 00:05:04]} Bb4+ {[%clk 00:05:09]}
{[%emt 00:00:02]} 5. c3 {[%clk 00:05:06]} Bc5 {[%clk 00:05:10]} {[%emt
00:00:01]} 6. Be3 {[%clk 00:05:03]} {[%emt 00:00:06]} Bb6 {[%clk 00:05:12]}
{[%emt 00:00:03]} 7. Qg4 {[%clk 00:05:05]} {[%emt 00:00:01]} Nf6 {[%clk
00:04:43]} {[%emt 00:00:30]} 8. Qxg7 {[%clk 00:05:05]} {[%emt 00:00:03]} Rg8
{[%clk 00:04:45]} 9. Qh6 {[%clk 00:05:04]} {[%emt 00:00:04]} Rg6 {[%clk
00:04:14]} {[%emt 00:00:35]} 10. Qf4 {[%clk 00:04:37]} {[%emt 00:00:29]} d6
{[%clk 00:03:35]} {[%emt 00:00:42]} 11. Nxc6 {[%clk 00:04:19]} {[%emt
00:00:20]} bxc6 {[%clk 00:03:36]} {[%emt 00:00:02]} 12. h3 {[%clk 00:04:21]}
{[%emt 00:00:02]} Qe7 {[%clk 00:03:25]} {[%emt 00:00:14]} 13. Nd2 {[%clk
00:04:16]} {[%emt 00:00:07]} Be6 {[%clk 00:02:59]} {[%emt 00:00:30]} 14. Ba6
{[%clk 00:04:05]} {[%emt 00:00:14]} Rb8 {[%clk 00:02:57]} {[%emt 00:00:05]} 15.
O-O-O {[%clk 00:03:58]} {[%emt 00:00:10]} Bxa2 {[%clk 00:02:04]} {[%emt
00:00:56]} 16. g4 {[%clk 00:02:11]} {[%emt 00:01:49]} h5 {[%clk 00:01:28]}
{[%emt 00:00:40]} 17. gxh5 {[%clk 00:01:55]} {[%emt 00:00:18]} Nxh5 {[%clk
00:01:20]} {[%emt 00:00:12]} 18. Qf3 {[%clk 00:01:57]} Nf6 {[%clk 00:01:20]}
{[%emt 00:00:03]} 19. h4 {[%clk 00:01:41]} {[%emt 00:00:19]} Qe5 {[%clk
00:01:11]} {[%emt 00:00:12]} 20. h5 {[%clk 00:01:21]} {[%emt 00:00:22]} Rg8
{[%clk 00:01:13]} 21. Qf5 {[%clk 00:00:59]} {[%emt 00:00:25]} Qxf5 {[%clk
00:00:39]} {[%emt 00:00:37]} 22. exf5 {[%clk 00:01:01]} Bd5 {[%clk 00:00:41]}
{[%emt 00:00:02]} 23. Rh4 {[%clk 00:00:55]} {[%emt 00:00:09]} Kd7 {[%clk
00:00:22]} {[%emt 00:00:23]} 24. c4 {[%clk 00:00:45]} {[%emt 00:00:12]} Bg2
{[%clk 00:00:18]} {[%emt 00:00:08]} 25. c5 {[%clk 00:00:44]} {[%emt 00:00:05]}
Ba5 {[%clk 00:00:19]} {[%emt 00:00:02]} 26. Nc4 {[%clk 00:00:44]} {[%emt
00:00:02]} Bb4 {[%clk 00:00:06]} {[%emt 00:00:16]} 27. cxd6 {[%clk 00:00:38]}
{[%emt 00:00:08]} cxd6 {[%clk 00:00:09]} {[%emt 00:00:02]} 28. Bxa7 {[%clk
00:00:40]} {[%emt 00:00:01]} Ra8 {[%clk 00:00:09]} {[%emt 00:00:02]} 29. Nb6+
{[%clk 00:00:42]} Kc7 {[%clk 00:00:10]} {[%emt 00:00:03]} 30. Nxa8+ {[%clk
00:00:41]} {[%emt 00:00:04]} Rxa8 {[%clk 00:00:13]} 31. Rxb4 {[%clk 00:00:42]}
{[%emt 00:00:02]} Rxa7 {[%clk 00:00:15]} 32. Be2 {[%clk 00:00:40]} {[%emt
00:00:05]} Be4 {[%clk 00:00:07]} {[%emt 00:00:11]} 33. h6 {[%clk 00:00:37]}
{[%emt 00:00:06]} Ra1+ {[%clk 00:00:05]} {[%emt 00:00:05]} 34. Kd2 {[%clk
00:00:38]} {[%emt 00:00:02]} Ra8 {[%clk 00:00:05]} {[%emt 00:00:03]} 35. f3
{[%clk 00:00:32]} {[%emt 00:00:08]} Bd5 {[%clk 00:00:07]} {[%emt 00:00:01]} 36.
Rh4 {[%clk 00:00:28]} {[%emt 00:00:07]} Nh7 {[%clk 00:00:08]} {[%emt 00:00:03]}
37. Rg1 {[%clk 00:00:24]} {[%emt 00:00:06]} Kd7 {[%clk 00:00:07]} {[%emt
00:00:04]} 38. Rg7 {[%clk 00:00:25]} {[%emt 00:00:02]} Rh8 {[%clk 00:00:10]} 39.
Ra4 {[%clk 00:00:18]} {[%emt 00:00:10]} Ke7 {[%clk 00:00:11]} {[%emt 00:00:02]}
40. Ke3 {[%clk 00:00:08]} {[%emt 00:00:13]} Kf6 {[%clk 00:00:13]} 41. Kf4
{[%clk 00:00:10]} Nf8 {[%clk 00:00:09]} {[%emt 00:00:08]} 42. Ra8 {[%clk
00:00:07]} {[%emt 00:00:06]} Rxh6 {[%clk 00:00:11]} 43. Rg1 {[%emt 00:00:03]}
Nd7 44. Bd3 {[%clk 00:00:05]} {[%emt 00:00:05]} Ne5 {[%clk 00:00:16]} 45. Be4
{[%clk 00:00:07]} Rh4+ {[%clk 00:00:18]} 46. Ke3 {[%clk 00:00:10]} Bxe4 {[%clk
00:00:19]} {[%emt 00:00:04]} 47. fxe4 {[%clk 00:00:12]} {[%emt 00:00:01]} Rh3+
{[%clk 00:00:22]} 48. Ke2 {[%clk 00:00:10]} {[%emt 00:00:03]} Rh2+ {[%clk
00:00:24]} {[%emt 00:00:02]} 49. Ke3 {[%clk 00:00:12]} {[%emt 00:00:02]} Rxb2
{[%clk 00:00:25]} {[%emt 00:00:01]} 50. Rd8 {[%clk 00:00:13]} {[%emt 00:00:02]}
Rb3+ {[%clk 00:00:18]} {[%emt 00:00:10]} 51. Ke2 {[%clk 00:00:15]} {[%emt
00:00:01]} Rb2+ {[%clk 00:00:12]} {[%emt 00:00:10]} 52. Ke3 {[%clk 00:00:12]}
{[%emt 00:00:05]} Rb3+ {[%clk 00:00:14]} 53. Kf2 {[%clk 00:00:13]} {[%emt
00:00:01]} Nd3+ {[%clk 00:00:14]} {[%emt 00:00:04]} 54. Kg2 {[%clk 00:00:14]}
{[%emt 00:00:02]} Nf4+ {[%clk 00:00:15]} {[%emt 00:00:02]} 55. Kf2 {[%clk
00:00:11]} {[%emt 00:00:06]} Nh3+ {[%clk 00:00:16]} {[%emt 00:00:02]} 56. Kg2
{[%clk 00:00:13]} Nxg1 {[%clk 00:00:09]} {[%emt 00:00:10]} 57. Kxg1 {[%clk
00:00:14]} {[%emt 00:00:02]} Rd3 {[%clk 00:00:06]} {[%emt 00:00:06]} 58. Kf2
{[%clk 00:00:14]} {[%emt 00:00:03]} Ke5 {[%clk 00:00:08]} 59. Re8+ {[%clk
00:00:16]} {[%emt 00:00:02]} Kf4 {[%clk 00:00:11]} 60. Re7 {[%clk 00:00:18]}
{[%emt 00:00:01]} Rf3+ {[%emt 00:00:03]} 61. Kg2 Re3 {[%clk 00:00:13]} 62. Rxf7
{[%clk 00:00:22]} {[%emt 00:00:01]} Re2+ {[%clk 00:00:15]} {[%emt 00:00:02]} 63.
Kf1 {[%clk 00:00:24]} Rxe4 {[%clk 00:00:17]} 64. f6 {[%clk 00:00:25]} {[%emt
00:00:01]} Re6 {[%clk 00:00:16]} {[%emt 00:00:03]} 65. Rc7 {[%clk 00:00:25]}
{[%emt 00:00:04]} Rxf6 {[%clk 00:00:08]} {[%emt 00:00:12]} 66. Rxc6 {[%clk
00:00:27]} Ke3+ {[%clk 00:00:10]} 67. Ke1 {[%clk 00:00:28]} {[%emt 00:00:01]}
Rh6 {[%clk 00:00:12]} {[%emt 00:00:02]} 68. Rc3+ {[%clk 00:00:30]} Kd4 {[%clk
00:00:14]} 69. Rg3 {[%clk 00:00:31]} {[%emt 00:00:01]} d5 {[%clk 00:00:16]} 70.
Ra3 {[%clk 00:00:31]} {[%emt 00:00:05]} Rh1+ {[%clk 00:00:16]} {[%emt
00:00:03]} 71. Kd2 {[%clk 00:00:32]} {[%emt 00:00:02]} Rh2+ {[%clk 00:00:17]}
{[%emt 00:00:02]} 72. Kd1 {[%clk 00:00:34]} Ke4 {[%clk 00:00:16]} {[%emt
00:00:04]} 73. Rg3 {[%clk 00:00:35]} {[%emt 00:00:02]} Ra2 {[%clk 00:00:17]}
{[%emt 00:00:02]} 74. Rh3 {[%clk 00:00:36]} {[%emt 00:00:02]} Rf2 {[%clk
00:00:17]} {[%emt 00:00:03]} 75. Ra3 {[%clk 00:00:37]} {[%emt 00:00:02]} Rf3
{[%clk 00:00:11]} {[%emt 00:00:09]} 76. Rxf3 {[%clk 00:00:20]} {[%emt
00:00:20]} Kxf3 {[%clk 00:00:13]} {[%emt 00:00:02]} 77. Kd2 {[%clk 00:00:22]}
Ke4 {[%clk 00:00:15]} 78. Ke2 {[%clk 00:00:25]} Kd4 {[%clk 00:00:17]} 79. Kd2
{[%clk 00:00:27]} Kc4 {[%clk 00:00:20]} 80. Kc2 {[%clk 00:00:30]} d4 {[%clk
00:00:21]} {[%emt 00:00:05]} 81. Kd2 {[%clk 00:00:32]} {[%emt 00:00:01]} d3
{[%clk 00:00:23]} 82. Kd1 {[%clk 00:00:34]} Kd4 {[%clk 00:00:25]} 83. Kd2
{[%clk 00:00:37]} Ke4 {[%clk 00:00:27]} {[%emt 00:00:03]} 84. Kd1 {[%clk
00:00:38]} Kd5 {[%clk 00:00:29]} 85. Kd2 {[%clk 00:00:40]} {[%emt 00:00:04]}
Kc4 {[%clk 00:00:32]} {[%emt 00:00:01]} 86. Kd1 {[%clk 00:00:42]} Kc3 {[%clk
00:00:34]} 87. Kc1 {[%clk 00:00:44]} {[%emt 00:00:02]} d2+ {[%clk 00:00:35]}
{[%emt 00:00:01]} 88. Kd1 {[%clk 00:00:46]} Kd3 {[%clk 00:00:37]} 1/2-1/2

[Event "7° Rencontres Internationales des Echecs Francophones"]
[Site "PARIS, France"]
[Date "2019.08.10"]
[Round "9.6"]
[White "Le Roux, Jean-Pierre"]
[Black "Shirazi, Kamran"]
[Result "1-0"]
[TimeControl "90'+30' + 30seconds/move"]
[WhiteElo "2535"]
[BlackElo "2303"]

1. d4 {[%clk 00:05:05]} {[%emt 00:06:54]} Nf6 {[%clk 00:04:54]} {[%emt
00:00:12]} 2. Nf3 {[%clk 00:05:05]} {[%emt 00:00:04]} b6 {[%clk 00:04:51]}
{[%emt 00:00:06]} 3. Bg5 {[%clk 00:04:59]} {[%emt 00:00:09]} Bb7 {[%clk
00:04:52]} {[%emt 00:00:01]} 4. Bxf6 {[%clk 00:04:51]} {[%emt 00:00:11]} exf6
{[%clk 00:04:51]} {[%emt 00:00:04]} 5. Nbd2 {[%clk 00:04:52]} {[%emt 00:00:02]}
f5 {[%clk 00:04:46]} {[%emt 00:00:08]} 6. g3 {[%clk 00:04:48]} {[%emt
00:00:07]} g5 {[%clk 00:04:27]} {[%emt 00:00:21]} 7. Bg2 {[%clk 00:04:39]}
{[%emt 00:00:12]} f4 {[%clk 00:04:29]} 8. c3 {[%clk 00:04:28]} {[%emt
00:00:15]} fxg3 {[%clk 00:04:24]} {[%emt 00:00:07]} 9. hxg3 {[%clk 00:04:29]}
{[%emt 00:00:02]} Bg7 {[%clk 00:04:26]} {[%emt 00:00:01]} 10. Qb3 {[%clk
00:04:12]} {[%emt 00:00:20]} Qe7 {[%clk 00:04:21]} {[%emt 00:00:08]} 11. O-O-O
{[%clk 00:03:58]} {[%emt 00:00:17]} Nc6 {[%clk 00:04:17]} {[%emt 00:00:07]} 12.
Qa4 {[%clk 00:03:44]} {[%emt 00:00:17]} h6 {[%clk 00:04:13]} {[%emt 00:00:07]}
13. Rhe1 {[%clk 00:03:41]} {[%emt 00:00:06]} O-O-O {[%clk 00:04:08]} {[%emt
00:00:08]} 14. d5 {[%clk 00:03:07]} {[%emt 00:00:36]} Na5 {[%clk 00:03:35]}
{[%emt 00:00:37]} 15. e4 {[%clk 00:02:24]} {[%emt 00:00:46]} c6 {[%clk
00:03:21]} {[%emt 00:00:17]} 16. b4 {[%clk 00:02:06]} {[%emt 00:00:21]} Bxc3
{[%clk 00:03:16]} {[%emt 00:00:08]} 17. bxa5 {[%clk 00:02:03]} {[%emt
00:00:06]} Bxa5 {[%clk 00:03:16]} {[%emt 00:00:03]} 18. Re3 {[%clk 00:01:55]}
{[%emt 00:00:10]} g4 {[%clk 00:03:07]} {[%emt 00:00:12]} 19. Nh4 {[%clk
00:01:46]} {[%emt 00:00:12]} cxd5 {[%clk 00:03:02]} {[%emt 00:00:08]} 20. exd5
{[%clk 00:01:26]} {[%emt 00:00:24]} Qf6 {[%clk 00:02:49]} {[%emt 00:00:16]} 21.
Ne4 {[%clk 00:01:04]} {[%emt 00:00:25]} Qe7 {[%clk 00:02:29]} {[%emt 00:00:23]}
22. Nf5 {[%clk 00:00:58]} {[%emt 00:00:09]} Qb4 {[%clk 00:02:25]} {[%emt
00:00:07]} 23. Qxb4 {[%clk 00:00:58]} {[%emt 00:00:03]} Bxb4 {[%clk 00:02:27]}
24. a3 {[%clk 00:00:56]} {[%emt 00:00:05]} Bf8 {[%clk 00:02:22]} {[%emt
00:00:08]} 25. Ned6+ {[%clk 00:00:38]} {[%emt 00:00:21]} Kb8 {[%clk 00:01:56]}
{[%emt 00:00:29]} 26. Nxb7 {[%clk 00:00:39]} {[%emt 00:00:02]} Kxb7 {[%clk
00:01:56]} {[%emt 00:00:02]} 27. d6+ {[%clk 00:00:42]} Kb8 {[%clk 00:01:56]}
{[%emt 00:00:04]} 28. Rc3 {[%clk 00:00:42]} {[%emt 00:00:03]} Rc8 {[%clk
00:01:54]} {[%emt 00:00:06]} 29. Rxc8+ {[%clk 00:00:42]} {[%emt 00:00:03]} Kxc8
{[%clk 00:01:55]} 30. Kb1 {[%clk 00:00:39]} {[%emt 00:00:05]} h5 {[%clk
00:01:53]} {[%emt 00:00:05]} 31. Rc1+ {[%clk 00:00:37]} {[%emt 00:00:05]} Kd8
{[%clk 00:01:56]} 32. Bb7 {[%clk 00:00:36]} {[%emt 00:00:05]} 1-0

[Event "7° Rencontres Internationales des Echecs Francophones"]
[Site "PARIS, France"]
[Date "2019.08.10"]
[Round "9.1"]
[White "Ider, Borya"]
[Black "Gurevich, Mikhail"]
[Result "0-1"]
[TimeControl "90'+30' + 30seconds/move"]
[WhiteElo "2492"]
[BlackElo "2559"]

1. Nf3 {[%clk 00:05:03]} {[%emt 00:00:03]} d6 {[%clk 00:05:02]} {[%emt
00:00:04]} 2. d4 {[%clk 00:05:02]} {[%emt 00:00:05]} g6 {[%clk 00:05:04]}
{[%emt 00:00:01]} 3. Bf4 {[%clk 00:05:02]} {[%emt 00:00:02]} Bg7 {[%clk
00:05:05]} {[%emt 00:00:02]} 4. e3 {[%clk 00:05:04]} Nd7 {[%clk 00:05:03]}
{[%emt 00:00:07]} 5. h3 {[%clk 00:05:00]} {[%emt 00:00:07]} e5 {[%clk
00:04:59]} {[%emt 00:00:06]} 6. Bh2 {[%clk 00:04:58]} {[%emt 00:00:04]} exd4
{[%clk 00:04:53]} {[%emt 00:00:09]} 7. exd4 {[%clk 00:05:00]} {[%emt 00:00:01]}
Ne7 {[%clk 00:04:26]} {[%emt 00:00:30]} 8. Bd3 {[%clk 00:04:53]} {[%emt
00:00:09]} O-O {[%clk 00:04:23]} {[%emt 00:00:06]} 9. O-O {[%clk 00:04:54]}
{[%emt 00:00:02]} Nf6 {[%clk 00:04:18]} {[%emt 00:00:08]} 10. c3 {[%clk
00:04:41]} {[%emt 00:00:17]} Bf5 {[%clk 00:04:18]} {[%emt 00:00:03]} 11. Re1
{[%clk 00:04:37]} {[%emt 00:00:06]} Re8 {[%clk 00:04:10]} {[%emt 00:00:10]} 12.
Na3 {[%clk 00:04:38]} {[%emt 00:00:03]} Bxd3 {[%clk 00:04:00]} {[%emt
00:00:13]} 13. Qxd3 {[%clk 00:04:40]} {[%emt 00:00:02]} Qd7 {[%clk 00:04:01]}
{[%emt 00:00:02]} 14. Nc2 {[%clk 00:04:38]} {[%emt 00:00:05]} Qf5 {[%clk
00:03:52]} {[%emt 00:00:12]} 15. Qxf5 {[%clk 00:04:38]} {[%emt 00:00:02]} Nxf5
{[%clk 00:03:54]} {[%emt 00:00:01]} 16. Rxe8+ {[%clk 00:04:39]} {[%emt
00:00:02]} Rxe8 {[%clk 00:03:56]} 17. Re1 {[%clk 00:04:41]} {[%emt 00:00:01]}
Kf8 {[%clk 00:03:51]} {[%emt 00:00:08]} 18. Kf1 {[%clk 00:04:42]} {[%emt
00:00:02]} h5 {[%clk 00:03:44]} {[%emt 00:00:10]} 19. Rxe8+ {[%clk 00:04:39]}
{[%emt 00:00:06]} Kxe8 {[%clk 00:03:45]} 20. Ke2 {[%clk 00:04:40]} {[%emt
00:00:03]} Ne4 {[%clk 00:03:40]} {[%emt 00:00:08]} 21. Nb4 {[%clk 00:04:28]}
{[%emt 00:00:15]} Bh6 {[%clk 00:03:29]} {[%emt 00:00:14]} 22. g4 {[%clk
00:04:16]} {[%emt 00:00:15]} hxg4 {[%clk 00:03:23]} {[%emt 00:00:08]} 23. hxg4
{[%clk 00:04:18]} {[%emt 00:00:02]} Ne7 {[%clk 00:03:23]} {[%emt 00:00:03]} 24.
Nd3 {[%clk 00:04:12]} {[%emt 00:00:10]} Kd7 {[%clk 00:03:18]} {[%emt 00:00:08]}
25. Bf4 {[%clk 00:04:08]} {[%emt 00:00:07]} Bxf4 {[%clk 00:02:55]} {[%emt
00:00:26]} 26. Nxf4 {[%clk 00:04:09]} {[%emt 00:00:02]} Nf6 {[%clk 00:02:57]}
27. Ng5 {[%clk 00:03:36]} {[%emt 00:00:36]} Ke8 {[%clk 00:02:58]} {[%emt
00:00:03]} 28. Kf3 {[%clk 00:03:35]} {[%emt 00:00:05]} Ned5 {[%clk 00:02:49]}
{[%emt 00:00:10]} 29. Nd3 {[%clk 00:03:08]} {[%emt 00:00:30]} Ke7 {[%clk
00:02:49]} {[%emt 00:00:03]} 30. c4 {[%clk 00:02:57]} {[%emt 00:00:15]} Nb6
{[%clk 00:02:50]} {[%emt 00:00:01]} 31. b3 {[%clk 00:02:57]} {[%emt 00:00:03]}
Nbd7 {[%clk 00:02:51]} {[%emt 00:00:01]} 32. Kg3 {[%clk 00:02:47]} {[%emt
00:00:14]} Nb8 {[%clk 00:02:50]} {[%emt 00:00:04]} 33. d5 {[%clk 00:02:40]}
{[%emt 00:00:10]} a5 {[%clk 00:02:46]} {[%emt 00:00:07]} 34. f4 {[%clk
00:02:37]} {[%emt 00:00:06]} Na6 {[%clk 00:02:47]} {[%emt 00:00:01]} 35. Kf3
{[%clk 00:02:37]} {[%emt 00:00:03]} Nb4 {[%clk 00:02:23]} {[%emt 00:00:28]} 36.
Nxb4 {[%clk 00:02:38]} {[%emt 00:00:02]} axb4 {[%clk 00:02:25]} {[%emt
00:00:01]} 37. Ne4 {[%clk 00:02:29]} {[%emt 00:00:12]} Nxg4 {[%clk 00:02:00]}
{[%emt 00:00:28]} 38. Kxg4 {[%clk 00:01:54]} {[%emt 00:00:38]} f5+ {[%clk
00:02:02]} 39. Kf3 {[%clk 00:01:56]} {[%emt 00:00:02]} fxe4+ {[%clk 00:02:04]}
{[%emt 00:00:01]} 40. Kxe4 {[%clk 00:01:57]} {[%emt 00:00:01]} Kf6 {[%clk
00:02:05]} {[%emt 00:00:02]} 41. Ke3 {[%clk 00:01:40]} {[%emt 00:00:21]} Kf5
{[%clk 00:02:03]} {[%emt 00:00:04]} 42. Kf3 {[%clk 00:01:42]} c6 {[%clk
00:01:33]} {[%emt 00:00:33]} 43. Ke3 {[%clk 00:01:32]} {[%emt 00:00:13]} cxd5
44. cxd5 {[%clk 00:01:33]} g5 {[%clk 00:01:13]} {[%emt 00:00:18]} 45. fxg5
{[%clk 00:01:11]} {[%emt 00:00:26]} Kxg5 {[%clk 00:01:14]} {[%emt 00:00:01]} 46.
Ke4 {[%clk 00:00:45]} {[%emt 00:00:28]} Kg4 {[%clk 00:01:14]} {[%emt 00:00:03]}
47. Ke3 {[%clk 00:00:47]} Kf5 {[%clk 00:01:15]} {[%emt 00:00:03]} 48. Kd4
{[%clk 00:00:49]} b5 {[%clk 00:01:18]} 49. Ke3 {[%clk 00:00:51]} {[%emt
00:00:02]} Ke5 {[%clk 00:01:20]} 50. Kd2 {[%clk 00:00:53]} {[%emt 00:00:02]}
Kxd5 {[%clk 00:01:19]} {[%emt 00:00:03]} 51. Kd3 {[%clk 00:00:55]} Ke5 {[%clk
00:01:21]} {[%emt 00:00:03]} 52. Ke3 {[%clk 00:00:57]} d5 {[%clk 00:01:23]} 53.
Kd3 {[%clk 00:00:59]} {[%emt 00:00:03]} d4 {[%clk 00:01:25]} 54. Kd2 {[%clk
00:01:02]} Ke4 {[%clk 00:01:26]} {[%emt 00:00:03]} 55. Ke2 {[%clk 00:01:03]}
{[%emt 00:00:01]} d3+ {[%clk 00:01:28]} {[%emt 00:00:02]} 56. Kd2 {[%clk
00:01:04]} {[%emt 00:00:02]} Kd4 {[%clk 00:01:30]} 57. Kc1 {[%clk 00:00:57]}
{[%emt 00:00:11]} Kc3 {[%clk 00:01:25]} {[%emt 00:00:07]} 0-1